fUST/lending_fUST_20250713
["ID","MTS","AMOUNT","RATE_DAILY","PERIOD"]
[371690402,1752388243774,-763.51,0.00018519,2]
[371690403,1752388243784,-460.0,0.0001852,2]
[371690404,1752388243793,-460.0,0.00018521,2]
[371690405,1752388243803,-151.0,0.00018522,2]
[371690406,1752388243813,-151.0,0.00018522,2]
[371690407,1752388243822,-151.0,0.00018524,2]
[371690408,1752388243831,-238.558168,0.00018557,2]
[371690409,1752388243841,-238.558168,0.00018639,2]
[371690410,1752388243851,-491.478123,0.00018689,2]
[371690411,1752388243860,-238.558168,0.00018721,2]
[371690412,1752388243870,-11507.2411699,0.00018728,2]
[371690413,1752388243880,-809.52,0.00018791,2]
[371690414,1752388243889,-2471.46,0.00018791,2]
[371690415,1752388243899,-313.96587443,0.00018791,2]
[371690416,1752388243909,-871.59,0.00018791,2]
[371690417,1752388243918,-1436.67,0.00018791,2]
[371690418,1752388243927,-460.0,0.00018791,2]
[371690419,1752388243937,-941.99,0.00018791,2]
[371690420,1752388243947,-795.45,0.00018791,2]
[371690421,1752388243956,-476.14974326,0.00018792,2]
[371690422,1752388243965,-619.76,0.00018792,2]
[371690423,1752388243975,-489.43,0.00018792,2]
[371690424,1752388243984,-1418.37,0.00018792,2]
[371690425,1752388243995,-460.0,0.00018792,2]
[371690426,1752388244010,-460.0,0.00018792,2]
[371690427,1752388244023,-460.0,0.00018792,2]
[371690428,1752388244037,-838.66,0.00018792,2]
[371690429,1752388244048,-460.0,0.00018792,2]
[371690430,1752388244062,-460.5,0.00018792,2]
[371690431,1752388244074,-2789.97,0.00018792,2]
[371690432,1752388244088,-460.0,0.00018792,2]
[371690433,1752388244101,-667.51,0.00018792,2]
[371690434,1752388244114,-460.0,0.00018792,2]
[371690435,1752388244128,-2287.96,0.00018792,2]
[371690437,1752388244140,-649.42,0.00018792,2]
[371690439,1752388244156,-460.0,0.00018792,2]
[371690440,1752388244171,-831.06,0.00018792,2]
[371690441,1752388244184,-460.0,0.00018792,2]
[371690442,1752388244197,-460.0,0.00018793,2]
[371690443,1752388244212,-460.0,0.00018793,2]
[371690444,1752388244225,-460.0,0.00018793,2]
[371690445,1752388244239,-460.0,0.00018793,2]
[371690446,1752388244252,-468.93352812,0.00018793,2]
[371690447,1752388244264,-158.36,0.00018793,2]
[371690448,1752388244274,-460.0,0.00018793,2]
[371690449,1752388244284,-460.0,0.00018793,2]
[371690450,1752388244297,-460.0,0.00018793,2]
[371690451,1752388244307,-460.0,0.00018793,2]
[371690452,1752388244320,-365.19644651,0.00018793,2]
[371690453,1752388244331,-460.0,0.00018793,2]
[371690454,1752388244345,-558.79,0.00018793,2]
[371690455,1752388244358,-469.68,0.00018793,2]
[371690456,1752388244371,-826.81,0.00018793,2]
[371690457,1752388244384,-763.51,0.00018793,2]
[371690458,1752388244397,-460.0,0.00018794,2]
[371690459,1752388244408,-463.084,0.00018794,2]
[371690460,1752388244418,-460.0,0.00018795,2]
[371690461,1752388244428,-151.0,0.00018796,2]
[371690462,1752388244440,-226.744506,0.00018796,2]
[371690463,1752388244455,-226.744506,0.00018796,2]
[371690464,1752388244466,-151.0,0.00018796,2]
[371690465,1752388244477,-776.35948408,0.00018823,2]
[371690466,1752388244486,-2007.57266618,0.00018907,2]
[371690467,1752388244495,-150.6122,0.00018976,2]
[371690468,1752388244507,-151.0,0.00018991,2]
[371690469,1752388244519,-151.0,0.00018991,2]
[371690470,1752388244532,-315.969708,0.00018991,2]
[371690471,1752388244544,-315.969708,0.00018991,2]
[371690472,1752388244555,-151.0,0.00018991,2]
[371690473,1752388244567,-151.0,0.00018991,2]
[371690474,1752388244579,-569528.84802321,0.00019001,2]
[371690475,1752388244597,-2567.4972101,0.00019001,2]
[371690476,1752388244611,-624.20491612,0.00019001,2]
[371690477,1752388244984,-55123.45632432,0.00019001,2]
[371690478,1752388244999,-460.0,0.00019001,2]
[371690479,1752388245012,-1177.51551664,0.00019001,2]
[371690480,1752388245024,-78001.77252655,0.00019001,2]
[371690481,1752388245065,-569.98847468,0.00017734,2]
[371690482,1752388245075,-817.85,0.00018442,3]
[371690483,1752388245096,-386.84733332,0.00019001,2]
[371690484,1752388245119,-676.49551176,0.00019001,2]
[371690497,1752388246434,-460.0,0.000166,2]
[371690498,1752388246444,-460.0,0.00016601,2]
[371690499,1752388246454,-35124.30807217,0.00019001,2]
[371690500,1752388246597,-702.06664328,0.00019001,2]
[371690501,1752388405415,456.317053,0.00013699,2]
[371690508,1752388503131,4260.12686259,0.00016,2]
[371690509,1752388510279,1000.0,0.00021288,53]
[371690510,1752388725903,380.0,0.00025236,50]
[371690511,1752388815600,24900.0,0.00015709,2]
[371690520,1752389000030,3609.0386188,0.000156,2]
[371690521,1752389157389,-187.55348113,0.000165,2]
[371690522,1752389157411,-258.1545644,0.00016538,2]
[371690523,1752389157432,-300.0,0.00016596,2]
[371690524,1752389157453,-460.0,0.00016597,2]
[371690525,1752389157475,-460.0,0.00016597,2]
[371690526,1752389157499,-369.47235491,0.00016597,2]
[371690527,1752389157523,-1147.28,0.00016597,2]
[371690528,1752389157544,-460.0,0.00016597,2]
[371690529,1752389157570,-644.01,0.00016597,2]
[371690530,1752389157592,-505.7,0.00016597,2]
[371690531,1752389157617,-460.0,0.00016597,2]
[371690532,1752389157640,-460.0,0.00016597,2]
[371690533,1752389157663,-460.0,0.00016597,2]
[371690534,1752389157685,-460.0,0.00016597,2]
[371690535,1752389157707,-460.0,0.00016597,2]
[371690536,1752389157729,-460.0,0.00016597,2]
[371690537,1752389157754,-500.0,0.00016597,2]
[371690538,1752389157776,-460.0,0.00016597,2]
[371690539,1752389157800,-460.0,0.00016597,2]
[371690540,1752389157824,-460.0,0.00016597,2]
[371690541,1752389157847,-460.0,0.00016597,2]
[371690542,1752389157870,-460.0,0.00016597,2]
[371690543,1752389157894,-460.0,0.00016597,2]
[371690544,1752389157917,-460.0,0.00016597,2]
[371690545,1752389157940,-460.0,0.00016597,2]
[371690546,1752389157961,-219.89774775,0.00016597,2]
[371690547,1752389157985,-636.32,0.00016597,2]
[371690548,1752389158008,-460.0,0.00016597,2]
[371690549,1752389158030,-460.0,0.00016597,2]
[371690550,1752389158052,-460.0,0.00016597,2]
[371690551,1752389158074,-460.0,0.00016597,2]
[371690552,1752389158097,-460.0,0.00016597,2]
[371690553,1752389158119,-460.0,0.00016597,2]
[371690554,1752389158141,-460.0,0.00016597,2]
[371690555,1752389158164,-191.61185181,0.00016597,2]
[371690556,1752389227124,1000.0,0.00027,120]
[371690582,1752389241118,188.2811958,0.00015667,2]
[371690644,1752389432644,-498.26760394,0.00016497,2]
[371690646,1752389432654,-37.68030738,0.00016596,2]
[371690649,1752389432667,-262.31969262,0.00016596,2]
[371690651,1752389432676,-491.82917073,0.00016597,2]
[371690659,1752389432751,-12.50629206,0.00016597,2]
[371690661,1752389432761,-460.0,0.00016597,2]
[371690663,1752389432771,-460.0,0.00016597,2]
[371690665,1752389432780,-331.73079093,0.00016597,2]
[371690954,1752389440500,-128.26920907,0.00016597,2]
[371690956,1752389440510,-460.0,0.00016597,2]
[371690958,1752389440519,-153.26127002,0.00016597,2]
[371690960,1752389440531,-309.32555949,0.00016597,2]
[371690962,1752389440540,-460.0,0.00016597,2]
[371690964,1752389440550,-460.0,0.00016597,2]
[371690966,1752389440559,-460.0,0.00016597,2]
[371690968,1752389440569,-460.0,0.00016597,2]
[371690970,1752389440581,-215.6071413,0.00016597,2]
[371690972,1752389440592,-244.3928587,0.00016597,2]
[371690975,1752389440601,-460.0,0.00016597,2]
[371690978,1752389440610,-527.35245545,0.00016597,2]
[371690981,1752389440621,-460.0,0.00016597,2]
[371690984,1752389440630,-460.0,0.00016597,2]
[371690986,1752389440640,-470.99375516,0.00016597,2]
[371690988,1752389440650,-137.30038116,0.00016597,2]
[371690990,1752389440662,-322.69961884,0.00016597,2]
[371690992,1752389440671,-356.96172001,0.00016597,2]
[371690994,1752389440688,-104.49827999,0.00016597,2]
[371690996,1752389440698,-385.78797959,0.00016597,2]
[371690997,1752389440714,-56.71875368,0.00016597,2]
[371690998,1752389440725,-460.0,0.00016597,2]
[371690999,1752389440735,-460.0,0.00016597,2]
[371691000,1752389440745,-460.0,0.00016597,2]
[371691001,1752389440755,-668.67,0.00016597,2]
[371691002,1752389440764,-460.0,0.00016597,2]
[371691003,1752389440774,-460.0,0.00016597,2]
[371691004,1752389440783,-460.0,0.00016597,2]
[371691005,1752389440793,-500.0,0.00016597,2]
[371691007,1752389440802,-186.66994338,0.00016597,2]
[371691009,1752389440811,-460.0,0.00016597,2]
[371691010,1752389440822,-2254.44,0.00016597,2]
[371691013,1752389440835,-460.0,0.00016597,2]
[371691015,1752389440844,-460.0,0.00016597,2]
[371691017,1752389440854,-460.0,0.00016597,2]
[371691019,1752389440864,-460.0,0.00016597,2]
[371691021,1752389440873,-585.69,0.00016597,2]
[371691023,1752389440883,-460.0,0.00016597,2]
[371691025,1752389440892,-460.0,0.00016597,2]
[371691027,1752389440902,-460.0,0.00016597,2]
[371691029,1752389440911,-589.57,0.00016597,2]
[371691031,1752389440920,-460.0,0.00016597,2]
[371691033,1752389440930,-573.61,0.00016597,2]
[371691035,1752389440939,-460.0,0.00016597,2]
[371691037,1752389440949,-628.98,0.00016597,2]
[371691039,1752389440958,-220.54098645,0.00016597,2]
[371691041,1752389440968,-547.69675633,0.00016597,2]
[371691043,1752389440977,-464.16015623,0.00016597,2]
[371691045,1752389440987,-460.0,0.00016597,2]
[371691047,1752389440996,-1961.9,0.00016597,2]
[371691049,1752389441006,-460.0,0.00016597,2]
[371691051,1752389441015,-470.84549204,0.00016597,2]
[371691053,1752389441025,-460.0,0.00016597,2]
[371691055,1752389441034,-460.0,0.00016597,2]
[371691057,1752389441043,-460.0,0.00016597,2]
[371691059,1752389441053,-220.24104234,0.00016597,2]
[371691061,1752389441062,-460.0,0.00016597,2]
[371691063,1752389441072,-506.3302443,0.00016597,2]
[371691065,1752389441081,-465.24392836,0.00016597,2]
[371691067,1752389441091,-460.0,0.00016597,2]
[371691069,1752389441100,-460.0,0.00016597,2]
[371691071,1752389441110,-460.0,0.00016597,2]
[371691073,1752389441118,-460.0,0.00016597,2]
[371691075,1752389441128,-460.0,0.00016597,2]
[371691076,1752389441137,-1932.85,0.00016597,2]
[371691078,1752389441146,-460.0,0.00016597,2]
[371691080,1752389441155,-460.0,0.00016597,2]
[371691082,1752389441164,-460.0,0.00016597,2]
[371691084,1752389441173,-460.0,0.00016597,2]
[371691086,1752389441182,-1335.76,0.00016597,2]
[371691088,1752389441191,-460.0,0.00016597,2]
[371691090,1752389441201,-460.0,0.00016597,2]
[371691092,1752389441210,-546.47296967,0.00016597,2]
[371691094,1752389441219,-463.32396749,0.00016597,2]
[371691096,1752389441229,-460.0,0.00016597,2]
[371691098,1752389441238,-520.38,0.00016597,2]
[371691100,1752389441247,-460.0,0.00016597,2]
[371691102,1752389441257,-460.0,0.00016597,2]
[371691104,1752389441266,-460.0,0.00016597,2]
[371691106,1752389441276,-500.0,0.00016597,2]
[371691108,1752389441285,-460.0,0.00016597,2]
[371691110,1752389441295,-460.0,0.00016597,2]
[371691112,1752389441305,-460.0,0.00016597,2]
[371691114,1752389441314,-460.0,0.00016597,2]
[371691116,1752389441324,-614.1,0.00016597,2]
[371691118,1752389441334,-460.0,0.00016597,2]
[371691120,1752389441344,-723.46,0.00016597,2]
[371691122,1752389441354,-1239.77,0.00016597,2]
[371691124,1752389441363,-460.0,0.00016597,2]
[371691126,1752389441372,-460.0,0.00016597,2]
[371691127,1752389441383,-460.0,0.00016597,2]
[371691129,1752389441393,-460.0,0.00016597,2]
[371691132,1752389441403,-460.0,0.00016597,2]
[371691134,1752389441412,-460.0,0.00016597,2]
[371691135,1752389441422,-460.0,0.00016597,2]
[371691137,1752389441431,-438.18578649,0.00016597,2]
[371691139,1752389441441,-460.0,0.00016597,2]
[371691142,1752389441450,-460.0,0.00016597,2]
[371691144,1752389441460,-519.18,0.00016597,2]
[371691145,1752389441470,-713.01,0.00016597,2]
[371691148,1752389441479,-460.0,0.00016597,2]
[371691150,1752389441489,-460.0,0.00016597,2]
[371691151,1752389441500,-460.0,0.00016597,2]
[371691153,1752389441510,-460.0,0.00016597,2]
[371691155,1752389441521,-460.0,0.00016597,2]
[371691158,1752389441533,-460.0,0.00016597,2]
[371691159,1752389441542,-460.0,0.00016597,2]
[371691162,1752389441551,-460.0,0.00016597,2]
[371691164,1752389441561,-462.45606311,0.00016597,2]
[371691165,1752389441572,-460.0,0.00016597,2]
[371691167,1752389441584,-1222.68,0.00016597,2]
[371691170,1752389441593,-586.45707663,0.00016598,2]
[371691171,1752389441603,-465.3774131,0.00016598,2]
[371691173,1752389441612,-460.0,0.00016598,2]
[371691175,1752389441623,-460.0,0.00016598,2]
[371691177,1752389441632,-460.0,0.00016598,2]
[371691179,1752389441641,-460.0,0.00016598,2]
[371691181,1752389441651,-460.0,0.00016598,2]
[371691183,1752389441661,-460.0,0.00016598,2]
[371691185,1752389441670,-460.0,0.00016598,2]
[371691187,1752389441679,-460.0,0.00016598,2]
[371691189,1752389441689,-238.40853097,0.00016598,2]
[371691191,1752389441699,-204.25257577,0.00016598,2]
[371691193,1752389441708,-460.55227657,0.00016598,2]
[371691195,1752389441718,-460.80740986,0.00016598,2]
[371691197,1752389441728,-460.0,0.00016598,2]
[371691199,1752389441737,-460.0,0.00016598,2]
[371691201,1752389441748,-460.0,0.00016598,2]
[371691203,1752389441758,-500.0,0.00016598,2]
[371691205,1752389441768,-500.0,0.00016598,2]
[371691207,1752389441777,-500.0,0.00016598,2]
[371691209,1752389441786,-460.0,0.00016599,2]
[371691211,1752389441796,-461.62907992,0.00016599,2]
[371691213,1752389441806,-460.0,0.00016599,2]
[371691215,1752389441815,-460.0,0.00016599,2]
[371691217,1752389441825,-547.82399474,0.00016599,2]
[371691219,1752389441834,-464.69430109,0.00016599,2]
[371691221,1752389441844,-460.0,0.00016599,2]
[371691223,1752389441854,-460.0,0.00016599,2]
[371691225,1752389441863,-460.0,0.00016599,2]
[371691227,1752389441872,-460.0,0.00016599,2]
[371691229,1752389441882,-460.0,0.00016599,2]
[371691231,1752389441892,-460.0,0.00016599,2]
[371691233,1752389441901,-460.0,0.00016599,2]
[371691235,1752389441911,-460.0,0.00016599,2]
[371691237,1752389441920,-460.0,0.00016599,2]
[371691239,1752389441929,-502.49764899,0.00016599,2]
[371691241,1752389441939,-460.0,0.00016599,2]
[371691243,1752389441948,-460.0,0.00016599,2]
[371691245,1752389441958,-460.0,0.00016599,2]
[371691247,1752389441967,-460.0,0.00016599,2]
[371691249,1752389441977,-460.0,0.00016599,2]
[371691251,1752389441986,-464.05098235,0.00016599,2]
[371691253,1752389441995,-460.0,0.00016599,2]
[371691254,1752389442004,-460.0,0.00016599,2]
[371691255,1752389442012,-314.0210308,0.00016599,2]
[371691256,1752389442021,-628.66,0.00016599,2]
[371691257,1752389442030,-460.0,0.00016599,2]
[371691258,1752389442040,-192.9,0.00016871,2]
[371691260,1752389442050,-460.0,0.00016871,2]
[371691262,1752389442060,-460.0,0.00016871,2]
[371691264,1752389442069,-460.0,0.00016871,2]
[371691266,1752389442078,-460.0,0.00016871,2]
[371691268,1752389442088,-270.09972919,0.00016871,2]
[371691270,1752389442097,-460.0,0.00016871,2]
[371691272,1752389442107,-460.0,0.00016871,2]
[371691273,1752389442117,-460.0,0.00016871,2]
[371691275,1752389442126,-460.0,0.00016871,2]
[371691278,1752389442136,-460.0,0.00016871,2]
[371691279,1752389442145,-460.0,0.00016871,2]
[371691282,1752389442155,-247.6143253,0.00016871,2]
[371691284,1752389442164,-460.0,0.00016871,2]
[371691285,1752389442176,-469.10647165,0.00016871,2]
[371691288,1752389442185,-460.0,0.00016871,2]
[371691290,1752389442195,-460.0,0.00016871,2]
[371691292,1752389442206,-460.0,0.00016871,2]
[371691294,1752389442216,-461.46,0.00016871,2]
[371691296,1752389442226,-460.0,0.00016871,2]
[371691298,1752389442236,-668.67,0.00016871,2]
[371691300,1752389442246,-460.0,0.00016871,2]
[371691302,1752389442255,-460.0,0.00016871,2]
[371691304,1752389442265,-460.0,0.00016871,2]
[371691306,1752389442274,-500.0,0.00016871,2]
[371691308,1752389442284,-460.0,0.00016871,2]
[371691310,1752389442293,-2254.44,0.00016871,2]
[371691312,1752389442303,-460.0,0.00016871,2]
[371691314,1752389442314,-460.0,0.00016871,2]
[371691316,1752389442323,-460.0,0.00016871,2]
[371691318,1752389442333,-585.69,0.00016871,2]
[371691320,1752389442342,-460.0,0.00016871,2]
[371691323,1752389442352,-460.0,0.00016871,2]
[371691325,1752389442361,-589.57,0.00016871,2]
[371691327,1752389442370,-460.0,0.00016871,2]
[371691329,1752389442380,-628.98,0.00016871,2]
[371691331,1752389442389,-1961.9,0.00016871,2]
[371691333,1752389442398,-460.0,0.00016871,2]
[371691335,1752389442407,-460.0,0.00016871,2]
[371691337,1752389442418,-460.0,0.00016871,2]
[371691339,1752389442428,-460.0,0.00016871,2]
[371691341,1752389442438,-460.0,0.00016871,2]
[371691343,1752389442447,-1932.85,0.00016871,2]
[371691345,1752389442458,-1335.76,0.00016871,2]
[371691347,1752389442467,-460.0,0.00016871,2]
[371691348,1752389442477,-460.0,0.00016871,2]
[371691351,1752389442486,-520.38,0.00016871,2]
[371691352,1752389442496,-460.0,0.00016871,2]
[371691355,1752389442506,-460.0,0.00016871,2]
[371691357,1752389442515,-563.00657936,0.00016871,2]
[371691359,1752389442525,-460.0,0.00016871,2]
[371691361,1752389442535,-460.0,0.00016871,2]
[371691362,1752389442544,-362.86881913,0.00016871,2]
[371691364,1752389442553,-614.1,0.00016871,2]
[371691367,1752389442563,-723.46,0.00016871,2]
[371691368,1752389442573,-1239.77,0.00016871,2]
[371691370,1752389442584,-460.0,0.00016871,2]
[371691373,1752389442593,-460.0,0.00016871,2]
[371691374,1752389442605,-460.0,0.00016871,2]
[371691377,1752389442615,-460.0,0.00016871,2]
[371691378,1752389442625,-460.0,0.00016871,2]
[371691380,1752389442634,-460.0,0.00016871,2]
[371691383,1752389442644,-460.0,0.00016871,2]
[371691385,1752389442656,-519.18,0.00016871,2]
[371691387,1752389442667,-713.01,0.00016871,2]
[371691389,1752389442676,-460.0,0.00016871,2]
[371691391,1752389442685,-460.0,0.00016871,2]
[371691393,1752389442694,-325.43358196,0.00016871,2]
[371691395,1752389442704,-460.0,0.00016871,2]
[371691397,1752389442713,-460.0,0.00016871,2]
[371691399,1752389442723,-460.0,0.00016871,2]
[371691401,1752389442732,-603.09593356,0.00016871,2]
[371691403,1752389442742,-460.0,0.00016871,2]
[371691405,1752389442751,-1222.68,0.00016871,2]
[371691407,1752389442761,-460.0,0.00016873,2]
[371691409,1752389442771,-460.0,0.00016873,2]
[371691411,1752389442781,-460.0,0.00016873,2]
[371691413,1752389442791,-394.53645477,0.00016873,2]
[371691415,1752389442800,-460.0,0.00016873,2]
[371691417,1752389442810,-460.0,0.00016873,2]
[371691419,1752389442819,-460.0,0.00016873,2]
[371691421,1752389442828,-460.0,0.00016873,2]
[371691423,1752389442837,-464.22388137,0.00016873,2]
[371691425,1752389442847,-460.0,0.00016873,2]
[371691427,1752389442857,-628.66,0.00016873,2]
[371691429,1752389442866,-346.45,0.00017135,3]
[371691431,1752389442876,-173.23,0.00017135,3]
[371691433,1752389442886,-500.0,0.00017144,2]
[371691435,1752389442896,-460.0,0.00017145,2]
[371691437,1752389442906,-460.0,0.00017145,2]
[371691439,1752389442915,-158.36,0.00017145,2]
[371691442,1752389442925,-460.0,0.00017145,2]
[371691444,1752389442934,-460.0,0.00017145,2]
[371691446,1752389442944,-460.0,0.00017145,2]
[371691448,1752389442953,-460.0,0.00017145,2]
[371691451,1752389442963,-460.0,0.00017145,2]
[371691452,1752389442972,-460.0,0.00017145,2]
[371691454,1752389442982,-460.0,0.00017145,2]
[371691457,1752389442991,-461.46,0.00017145,2]
[371691459,1752389443000,-460.0,0.00017145,2]
[371691460,1752389443009,-668.67,0.00017145,2]
[371691462,1752389443019,-460.0,0.00017145,2]
[371691465,1752389443028,-460.0,0.00017145,2]
[371691466,1752389443038,-460.0,0.00017145,2]
[371691468,1752389443047,-500.0,0.00017145,2]
[371691470,1752389443057,-460.0,0.00017145,2]
[371691473,1752389443067,-2254.44,0.00017145,2]
[371691475,1752389443076,-460.0,0.00017145,2]
[371691477,1752389443086,-460.0,0.00017145,2]
[371691479,1752389443095,-585.69,0.00017145,2]
[371691481,1752389443105,-460.0,0.00017145,2]
[371691483,1752389443114,-460.0,0.00017145,2]
[371691485,1752389443124,-589.57,0.00017145,2]
[371691487,1752389443133,-628.98,0.00017145,2]
[371691489,1752389443143,-1961.9,0.00017145,2]
[371691491,1752389443152,-460.0,0.00017145,2]
[371691493,1752389443161,-460.0,0.00017145,2]
[371691494,1752389443171,-460.0,0.00017145,2]
[371691497,1752389443180,-1932.85,0.00017145,2]
[371691499,1752389443190,-1335.76,0.00017145,2]
[371691500,1752389443200,-460.0,0.00017145,2]
[371691502,1752389443210,-207.4605346,0.00017145,2]
[371691506,1752389443219,-520.38,0.00017145,2]
[371691507,1752389443229,-460.0,0.00017145,2]
[371691509,1752389443238,-353.1357365,0.00017145,2]
[371691512,1752389443248,-460.0,0.00017145,2]
[371691514,1752389443258,-460.0,0.00017145,2]
[371691517,1752389443269,-614.1,0.00017145,2]
[371691520,1752389443279,-723.46,0.00017145,2]
[371691521,1752389443288,-1239.77,0.00017145,2]
[371691522,1752389443298,-460.0,0.00017145,2]
[371691523,1752389443307,-460.0,0.00017145,2]
[371691524,1752389443316,-460.0,0.00017145,2]
[371691525,1752389443326,-460.0,0.00017145,2]
[371691526,1752389443335,-460.0,0.00017145,2]
[371691527,1752389443346,-519.18,0.00017145,2]
[371691528,1752389443356,-713.01,0.00017145,2]
[371691529,1752389443365,-460.0,0.00017145,2]
[371691530,1752389443375,-484.10220023,0.00017145,2]
[371691531,1752389443384,-460.0,0.00017145,2]
[371691532,1752389443394,-460.0,0.00017145,2]
[371691533,1752389443403,-460.0,0.00017145,2]
[371691534,1752389443414,-1222.68,0.00017145,2]
[371691538,1752389443524,-460.0,0.00017147,2]
[371691539,1752389443550,-460.0,0.00017147,2]
[371691540,1752389443561,-460.0,0.00017147,2]
[371691541,1752389443573,-460.0,0.00017147,2]
[371691542,1752389443584,-460.0,0.00017147,2]
[371691543,1752389443594,-628.66,0.00017147,2]
[371691544,1752389443604,-500.0,0.00017213,2]
[371691546,1752389443614,-500.0,0.00017213,2]
[371691548,1752389443625,-500.29509374,0.00017213,2]
[371691550,1752389443635,-500.0,0.00017213,2]
[371691551,1752389443644,-503.10861317,0.00017213,2]
[371691552,1752389443656,-512.64927239,0.00017241,2]
[371691553,1752389443666,-214.70013,0.00017309,2]
[371691554,1752389443675,-500.0,0.00017369,2]
[371691555,1752389443685,-500.0,0.00017369,2]
[371691556,1752389443695,-214.70013,0.00017392,2]
[371691557,1752389443704,-500.0,0.00017418,2]
[371691558,1752389443715,-460.0,0.00017419,2]
[371691559,1752389443725,-460.0,0.00017419,2]
[371691560,1752389443734,-460.0,0.00017419,2]
[371691561,1752389443744,-460.0,0.00017419,2]
[371691563,1752389443754,-460.0,0.00017419,2]
[371691564,1752389443764,-460.0,0.00017419,2]
[371691565,1752389443775,-460.0,0.00017419,2]
[371691566,1752389443786,-460.0,0.00017419,2]
[371691567,1752389443796,-460.0,0.00017419,2]
[371691568,1752389443806,-461.46,0.00017419,2]
[371691569,1752389443816,-577.85613746,0.00017419,2]
[371691570,1752389443826,-668.67,0.00017419,2]
[371691571,1752389443835,-460.0,0.00017419,2]
[371691572,1752389443845,-460.0,0.00017419,2]
[371691573,1752389443855,-460.0,0.00017419,2]
[371691574,1752389443865,-261.17,0.00017419,2]
[371691575,1752389443876,-2254.44,0.00017419,2]
[371691576,1752389443885,-460.0,0.00017419,2]
[371691577,1752389443896,-206.06,0.00017419,2]
[371691578,1752389443906,-585.69,0.00017419,2]
[371691579,1752389443915,-460.0,0.00017419,2]
[371691580,1752389443926,-460.0,0.00017419,2]
[371691581,1752389443936,-589.57,0.00017419,2]
[371691582,1752389443948,-628.98,0.00017419,2]
[371691583,1752389443958,-1961.9,0.00017419,2]
[371691584,1752389443967,-460.0,0.00017419,2]
[371691585,1752389443976,-603.7388468,0.00017419,2]
[371691586,1752389443986,-460.0,0.00017419,2]
[371691587,1752389443995,-1932.85,0.00017419,2]
[371691588,1752389444004,-1335.76,0.00017419,2]
[371691589,1752389444014,-460.0,0.00017419,2]
[371691590,1752389444023,-520.38,0.00017419,2]
[371691591,1752389444032,-460.0,0.00017419,2]
[371691592,1752389444041,-460.0,0.00017419,2]
[371691593,1752389444051,-362.5241419,0.00017419,2]
[371691594,1752389444061,-614.1,0.00017419,2]
[371691595,1752389444070,-723.46,0.00017419,2]
[371691596,1752389444080,-1239.77,0.00017419,2]
[371691597,1752389444090,-460.0,0.00017419,2]
[371691598,1752389444100,-460.0,0.00017419,2]
[371691599,1752389444110,-460.0,0.00017419,2]
[371691600,1752389444120,-460.0,0.00017419,2]
[371691601,1752389444129,-519.18,0.00017419,2]
[371691602,1752389444138,-713.01,0.00017419,2]
[371691603,1752389444147,-460.0,0.00017419,2]
[371691604,1752389444157,-460.0,0.00017419,2]